bitfinex/quotes_ETHUSD_20250318
["timestamp","ask_amount","ask_price","bid_price","bid_amount"]
[1742309536372,7.71442777,1894.6,1894.3,6.07822]
[1742309536536,7.71442777,1894.4,1894.3,6.07822]
[1742309537531,7.71442777,1894.4,1894.3,0.7994]
[1742309537735,7.71442777,1894.4,1894.2,16.05326]
[1742309537935,7.71442777,1894.4,1894.2,10.7741]
[1742309538566,3.0,1894.3,1894.0,17.456]
[1742309538767,3.0,1894.1,1893.9,0.8327]
[1742309538972,7.71442777,1894.0,1893.9,0.8327]
[1742309539560,3.0,1893.9,1893.8,5.28027]
[1742309539770,4.71442777,1894.0,1893.9,5.2801]
[1742309540244,4.71442777,1894.0,1893.8,0.8327]
[1742309540450,4.71442777,1893.9,1893.8,6.11305]
[1742309540645,3.0,1894.4,1894.0,5.27975]
[1742309540861,7.71442777,1894.1,1894.0,5.27975]
[1742309541740,3.0,1894.4,1894.0,5.27963]
[1742309541953,1.18215064,1894.6,1894.3,5.27887]
[1742309542151,1.18215064,1894.6,1894.2,5.27917]
[1742309542349,8.2785,1894.5,1894.1,5.27954]
[1742309542653,0.7958,1894.3,1893.9,5.28003]
[1742309543050,4.71442777,1894.0,1893.8,6.04295]
[1742309543376,4.71442777,1893.9,1893.6,0.7888]
[1742309543560,4.71442777,1893.7,1893.5,5.2811]
[1742309543760,4.71442777,1893.6,1893.5,10.56219]
[1742309547054,4.71442777,1893.6,1893.5,5.28109]
[1742309547678,4.71442777,1893.6,1893.5,5.28122]
[1742309547874,4.71442777,1893.6,1893.4,10.56271]
[1742309548046,4.71442777,1893.5,1893.3,6.3592285]
[1742309548245,4.71442777,1893.5,1893.3,6.3590985]
[1742309548673,6.71611332,1893.5,1893.1,5.28231]
[1742309548876,6.71611332,1893.5,1893.1,5.28234]
[1742309548877,7.71442777,1893.2,1893.1,5.28234]
[1742309549268,4.71442777,1893.2,1893.1,5.28234]
[1742309549578,4.71442777,1893.2,1893.0,5.2825]
[1742309550077,4.71442777,1893.1,1892.9,5.28281]
[1742309550384,4.71442777,1893.0,1892.9,5.28275]
[1742309552378,4.71442777,1893.0,1892.8,5.28314]
[1742309552580,4.71442777,1892.9,1892.8,5.28314]
[1742309554371,4.71442777,1892.9,1892.7,5.28342]
[1742309554686,4.71442777,1892.9,1892.8,5.28317]
[1742309554866,3.813,1892.8,1892.6,1.06636589]
[1742309555045,4.71442777,1892.7,1892.5,10.56781]
[1742309555250,4.71442777,1892.6,1892.5,5.2839]
[1742309555456,4.71442777,1892.6,1892.5,6.36308049]
[1742309555753,7.71442777,1892.6,1892.5,6.36308049]
[1742309556894,3.0,1892.6,1892.5,7.58064375]
[1742309557092,7.71442777,1892.8,1892.7,5.28345]
[1742309561292,7.71442777,1892.8,1892.7,6.09435]
[1742309561485,7.71442777,1893.0,1892.9,5.28289]
[1742309567092,3.0,1893.0,1892.9,5.28289]
[1742309567297,7.71442777,1893.0,1892.9,5.28289]
[1742309569698,3.0,1893.0,1892.9,5.28289]
[1742309569876,7.71442777,1893.0,1892.9,5.28289]
[1742309570291,7.71442777,1893.0,1892.9,5.23289]
[1742309570713,4.71442777,1893.3,1893.2,5.28194]
[1742309572196,5.50362777,1893.3,1893.2,5.28194]
[1742309572571,8.50362777,1893.3,1893.2,5.28194]
[1742309573598,7.71442777,1893.3,1893.2,5.28194]
[1742309575094,3.0,1893.3,1893.2,5.28194]
[1742309575396,7.71442777,1893.3,1893.2,5.28194]
[1742309576402,3.0,1893.3,1893.2,5.28194]
[1742309576579,7.71442777,1893.3,1893.2,6.338356]
[1742309577289,7.71442777,1893.3,1893.2,5.28194]
[1742309581495,3.0,1893.2,1893.1,5.28234]
[1742309581710,4.71442777,1893.2,1893.1,5.28234]
[1742309582217,7.71442777,1893.2,1893.1,5.28234]
[1742309583695,6.06859,1893.0,1892.5,0.8004]
[1742309583890,4.71442777,1892.7,1892.6,5.28349]
[1742309584679,5.12086477,1892.7,1892.6,5.28349]
[1742309586207,8.12086477,1892.7,1892.5,5.28389]
[1742309586407,4.232537,1892.7,1892.6,5.28373]
[1742309587188,3.406437,1892.7,1892.6,5.28373]
[1742309588316,8.12086477,1892.7,1892.6,5.28373]
[1742309589005,3.0,1892.6,1892.5,5.28389]
[1742309590004,7.71442777,1892.6,1892.4,40.28416]
[1742309590191,9.35741425,1892.6,1892.4,5.28416]
[1742309590391,3.0,1892.4,1892.3,5.28454]
[1742309590593,7.71442777,1892.4,1892.3,5.28454]
[1742309592114,7.71442777,1892.4,1892.3,5.18454]
[1742309594980,0.406437,1892.7,1892.6,5.28373]
[1742309595317,7.71442777,1892.7,1892.6,5.28373]
[1742309596715,3.3896945,1892.7,1892.6,5.28373]
[1742309598517,3.0,1892.7,1892.6,5.28373]
[1742309598818,7.71442777,1892.7,1892.6,40.28373]
[1742309599320,7.71442777,1892.7,1892.6,5.28373]
[1742309599521,3.0,1892.7,1892.6,5.28373]
[1742309599696,3.39267472,1892.7,1892.6,5.28373]
[1742309601884,4.18817472,1892.7,1892.5,5.2839]
[1742309602220,1.18817472,1892.7,1892.6,5.28373]
[1742309602610,1.18817472,1892.7,1892.5,5.2839]
[1742309602807,1.18817472,1892.7,1892.6,5.28373]
[1742309603317,8.90260249,1892.7,1892.6,5.28373]
[1742309603517,8.10710249,1892.7,1892.6,5.28373]
[1742309605299,7.71442777,1892.7,1892.6,5.28373]
[1742309606514,4.71442777,1892.7,1892.6,5.28373]
[1742309611232,7.71442777,1892.7,1892.6,5.28373]
[1742309614941,0.7748,1893.3,1893.1,5.28224]
[1742309615127,0.7748,1893.3,1893.1,10.56442]
[1742309615331,4.71442777,1893.2,1893.1,5.28218]
[1742309615535,7.71442777,1893.2,1893.1,5.28218]
[1742309615915,3.0,1893.1,1893.0,5.2825]
[1742309616116,4.71442777,1893.2,1893.1,5.28234]
[1742309616316,8.56335055,1893.2,1893.1,5.28234]
[1742309616543,3.0,1893.1,1893.0,5.2825]
[1742309617121,3.39652056,1893.1,1893.0,5.2825]
[1742309618142,3.39652056,1893.1,1892.9,5.28283]
[1742309618342,3.0,1892.9,1892.8,5.28316]
[1742309620941,0.39652056,1893.1,1893.0,5.28262]
[1742309621124,7.71442777,1893.1,1893.0,5.28262]
[1742309622430,7.71442777,1893.1,1893.0,6.09192]
[1742309622640,6.09192,1893.0,1892.9,10.56558]
[1742309622842,4.71442777,1893.0,1892.9,10.56558]
[1742309624127,4.71442777,1893.0,1892.9,11.33568]
[1742309627573,4.71442777,1893.0,1892.9,10.56558]
[1742309629766,4.71442777,1893.0,1892.9,11.622138]
[1742309629971,4.71442777,1893.0,1892.9,12.394038]
[1742309630130,3.0,1893.1,1893.0,5.28262]
[1742309630347,7.71442777,1893.1,1893.0,5.28262]
[1742309631683,3.0,1893.1,1893.0,5.28262]
[1742309631883,7.71442777,1893.1,1893.0,5.28262]
[1742309638169,3.0,1893.1,1893.0,7.64764]
[1742309638956,7.71442777,1893.1,1893.0,7.64764]
[1742309639169,7.71442777,1893.1,1893.0,5.28262]
[1742309644006,8.28262,1893.0,1892.7,5.28335]
[1742309644201,5.53352777,1892.8,1892.7,5.28335]
[1742309644388,3.0,1892.7,1892.6,5.28373]
[1742309645297,7.71442777,1892.7,1892.6,5.28373]
[1742309645679,8.11675477,1892.7,1892.6,5.28373]
[1742309648787,3.402327,1892.7,1892.6,5.28373]
[1742309649224,8.11675477,1892.7,1892.6,5.28373]
[1742309649388,3.402327,1892.7,1892.6,5.28373]
[1742309649599,3.402327,1892.7,1892.6,6.3405]
[1742309650381,3.0,1892.7,1892.6,7.1466]
[1742309650782,6.02,1893.2,1893.1,5.28234]
[1742309650986,10.73442777,1893.2,1893.1,5.28234]
[1742309651598,13.73442777,1893.2,1893.1,5.28234]
[1742309652611,4.71442777,1893.4,1893.3,5.28164]
[1742309653013,7.71442777,1893.4,1893.3,5.28164]
[1742309654918,8.48792777,1893.4,1893.3,5.28164]
[1742309655120,3.0,1893.3,1893.2,5.28204]
[1742309655290,5.28204,1893.2,1893.1,5.28229]
[1742309655602,5.11630214,1893.2,1893.1,5.28229]
[1742309656986,5.11630214,1893.2,1893.0,5.28237]
[1742309657186,5.11630214,1893.2,1893.1,5.28234]
[1742309658305,3.0,1893.1,1893.0,5.28237]
[1742309658514,8.48492777,1893.1,1893.0,5.28237]
[1742309660824,3.7705,1893.1,1893.0,5.28237]
[1742309661121,8.48492777,1893.1,1893.0,5.28237]
[1742309661311,7.71442777,1893.1,1893.0,5.28237]
[1742309661714,3.0,1893.1,1893.0,7.158996]
[1742309662287,3.0,1893.1,1893.0,42.158996]
[1742309662493,3.0,1893.1,1893.0,47.634996]
[1742309663410,4.71442777,1893.4,1893.2,5.28206]
[1742309663727,0.7711,1893.7,1893.6,5.28094]
[1742309663928,8.48552777,1893.7,1893.6,5.28094]
[1742309664094,4.71442777,1893.7,1893.6,5.28094]
[1742309664926,3.0,1894.0,1893.7,5.28043]
[1742309665127,0.3826,1894.0,1893.8,5.28028]
[1742309666297,7.71442777,1893.9,1893.7,5.28065]
[1742309666520,0.3826,1894.0,1893.6,5.28068]
[1742309666521,8.47962777,1893.8,1893.6,5.28068]
[1742309666696,0.7652,1893.8,1893.7,5.28066]
[1742309667021,0.7652,1894.0,1893.8,5.28037]
[1742309667221,1.16685804,1894.0,1893.8,5.28037]
[1742309667404,1.16685804,1894.0,1893.7,5.28062]
[1742309667819,3.0,1893.9,1893.7,5.28062]
[1742309668128,3.0,1893.7,1893.6,5.28081]
[1742309670928,3.7635,1893.7,1893.6,5.28094]
[1742309671094,4.61129278,1893.7,1893.6,5.28094]
[1742309671294,3.84779278,1893.7,1893.6,5.28094]
[1742309672226,3.0,1893.7,1893.6,5.28094]
[1742309672830,1.21960179,1894.0,1893.9,5.2801]
[1742309673042,5.11512956,1894.0,1893.9,5.2801]
[1742309673244,5.11512956,1894.0,1893.9,6.0427]
[1742309673403,8.11512956,1894.0,1893.9,6.0427]
[1742309673614,8.11512956,1894.0,1893.9,5.2801]
[1742309673814,8.11512956,1894.0,1893.8,5.28027]
[1742309673815,6.904617,1893.9,1893.8,5.28027]
[1742309674002,3.0,1893.9,1893.8,5.28027]
[1742309674199,3.0,1893.8,1893.7,5.28061]
[1742309674400,7.71442777,1893.9,1893.8,5.28038]
[1742309675218,7.71442777,1893.9,1893.8,6.04908]
[1742309675717,3.0,1893.9,1893.8,7.182049]
[1742309676129,3.0,1893.9,1893.8,12.654049]
[1742309676309,0.7549,1894.5,1894.4,5.27871]
[1742309676625,5.86577414,1894.5,1894.3,10.55769]
[1742309676811,3.0,1894.3,1894.2,5.27925]
[1742309677013,7.71442777,1894.3,1894.2,5.27925]
[1742309678208,4.71442777,1894.3,1894.2,6.93939]
[1742309679552,4.71442777,1894.3,1894.2,5.27925]
[1742309679710,3.0,1894.2,1894.1,10.55873]
[1742309679914,7.71442777,1894.2,1894.1,5.27932]
[1742309680211,7.71442777,1894.2,1894.0,5.27978]
[1742309680212,3.0,1894.1,1893.9,10.56003]
[1742309680417,7.71442777,1894.0,1893.9,5.27995]
[1742309684083,4.71442777,1894.0,1893.9,5.27995]
[1742309684967,5.27995,1893.9,1893.8,5.28027]
[1742309685137,5.94347016,1894.0,1893.8,5.28027]
[1742309685475,4.71442777,1893.9,1893.8,5.28027]
[1742309686647,3.8141,1894.2,1893.9,6.10693]
[1742309686844,3.8141,1894.2,1894.0,5.27973]
[1742309687046,7.71442777,1894.1,1894.0,5.27973]
[1742309687379,3.0,1894.0,1893.9,5.28]
[1742309687866,3.40133194,1894.0,1893.9,5.28]
[1742309690374,0.40133194,1894.0,1893.9,5.28]
[1742309690669,3.0,1894.0,1893.9,5.28]
[1742309691470,7.71442777,1894.1,1894.0,5.27983]
[1742309691849,3.0,1894.0,1893.9,10.56]
[1742309692048,0.40292947,1894.0,1893.9,10.56]
[1742309692237,3.0,1894.0,1893.9,10.56]
[1742309692438,3.0,1894.0,1893.9,5.28]
[1742309692654,3.77144278,1894.0,1893.8,10.56055]
[1742309692857,7.71442777,1893.9,1893.8,10.56055]
[1742309694673,4.71442777,1893.9,1893.8,10.56055]
[1742309698183,4.71442777,1894.1,1894.0,5.27983]
[1742309698978,4.71442777,1894.1,1894.0,40.27983]
[1742309699283,4.71442777,1894.1,1894.0,44.913483]
[1742309699477,4.71442777,1894.3,1894.2,5.27927]
[1742309701454,4.71442777,1894.3,1894.2,6.06587]
[1742309702456,4.71442777,1894.3,1894.2,5.27927]
[1742309703756,7.71442777,1894.3,1894.2,5.27927]
[1742309703977,9.03581332,1894.3,1894.1,10.55884]
[1742309704196,3.0,1894.2,1894.1,5.27941]
[1742309704399,3.0,1894.2,1894.0,5.27972]
[1742309704700,6.03581332,1894.3,1894.2,5.27927]
[1742309704701,3.0,1894.3,1894.2,5.27927]
[1742309705186,3.0,1894.4,1894.3,5.27893]
[1742309705383,6.41644637,1894.5,1894.3,5.27893]
[1742309705384,0.39644637,1894.5,1894.4,5.27871]
[1742309705681,3.0,1894.7,1894.6,5.27813]
[1742309706087,0.8031,1894.8,1894.7,5.27788]
[1742309706289,1.48438875,1895.2,1895.1,5.27676]
[1742309706596,1.48438875,1895.2,1895.1,6.562936]
[1742309706777,1.48438875,1895.2,1895.1,12.026936]
[1742309706981,6.19881652,1895.2,1895.1,12.026936]
[1742309707284,0.40333464,1895.5,1895.4,5.27593]
[1742309707489,4.71442777,1895.5,1895.4,5.27593]
[1742309707680,0.8034,1895.8,1895.6,5.27521]
[1742309707875,4.71442777,1895.7,1895.6,5.27521]
[1742309708077,7.961882,1895.6,1895.5,5.27562]
[1742309708267,3.0,1895.6,1895.3,5.27608]
[1742309708465,3.99471195,1895.7,1895.4,5.27593]
[1742309708664,3.0,1895.3,1895.0,5.27698]
[1742309708877,8.27621,1895.3,1894.9,5.27714]
[1742309709204,4.71442777,1895.0,1894.8,5.27759]
[1742309709503,4.71442777,1894.9,1894.8,5.27759]
[1742309712982,4.71442777,1894.9,1894.7,5.27788]
[1742309712983,3.0,1894.7,1894.6,5.27814]
[1742309713162,5.26167055,1894.9,1894.7,5.27786]
[1742309713505,3.0,1894.8,1894.7,5.27786]
[1742309713712,3.0,1894.8,1894.5,5.27843]
[1742309713889,4.71442777,1894.7,1894.5,5.27833]
[1742309714217,5.01442777,1894.7,1894.5,5.27833]
[1742309714362,4.71442777,1894.7,1894.6,5.27815]
[1742309714869,3.0,1894.7,1894.6,5.27815]
[1742309718991,3.0,1894.7,1894.6,6.08475]
[1742309719394,4.71442777,1895.2,1894.9,0.8244]
[1742309719690,3.0,1895.2,1895.1,5.27676]
[1742309719864,7.71442777,1895.2,1895.1,5.27676]
[1742309720798,3.0,1895.2,1895.1,5.27676]
[1742309720967,7.71442777,1895.2,1895.1,5.27676]
[1742309722106,4.71442777,1895.2,1895.1,7.14304]
[1742309722323,4.71442777,1895.4,1895.3,5.2762]
[1742309722617,7.71442777,1895.4,1895.3,5.2762]
[1742309723684,3.0,1895.4,1895.3,5.2762]
[1742309723887,3.0,1895.4,1895.3,6.0871]
[1742309724207,7.71442777,1895.4,1895.3,7.223458]
[1742309729517,7.71442777,1895.4,1895.3,5.2762]
[1742309730806,3.0,1895.4,1895.3,5.2762]
[1742309731015,7.71442777,1895.4,1895.3,5.2762]
[1742309732105,7.71442777,1895.4,1895.3,6.0546]
[1742309732414,7.71442777,1895.4,1895.3,6.11492982]
[1742309732722,7.71442777,1895.4,1895.3,7.2540708]
[1742309732877,3.0,1895.4,1895.3,7.2540708]
[1742309733080,4.71442777,1895.6,1895.5,5.27565]
[1742309733276,4.71442777,1896.0,1895.7,5.27509]
[1742309733481,7.71442777,1896.0,1895.9,5.27453]
[1742309733910,4.71442777,1896.0,1895.9,5.33931695]
[1742309734713,8.10967406,1896.0,1895.9,5.33931695]
[1742309735011,7.71442777,1896.0,1895.9,5.33931695]
[1742309736210,7.71442777,1896.0,1895.9,0.06478695]
[1742309736512,7.71442777,1896.0,1895.9,5.33931695]
[1742309736712,3.0,1895.9,1895.8,5.27464]
[1742309737318,3.0,1895.9,1895.8,10.54931]
[1742309738220,3.0,1895.9,1895.8,11.604241]
[1742309738383,3.8061,1896.2,1896.0,5.27419]
[1742309738583,7.71442777,1896.1,1896.0,5.27419]
[1742309739361,3.0,1896.0,1895.9,5.27452]
[1742309741304,12.42885554,1896.0,1895.7,5.27499]
[1742309741618,4.71442777,1895.8,1895.7,5.27499]
[1742309742610,4.71442777,1895.8,1895.7,7.095714]
[1742309743211,4.71442777,1895.8,1895.7,5.27499]
[1742309744499,4.71442777,1895.9,1895.8,6.09371]
[1742309744722,4.71442777,1896.0,1895.9,5.27442]
[1742309745728,9.42885554,1896.0,1895.9,5.27442]
[1742309745893,7.71442777,1896.0,1895.9,5.27442]
[1742309747397,7.71442777,1896.0,1895.9,6.62063563]
[1742309747798,7.71442777,1896.0,1895.9,6.67988079]
[1742309748032,3.0,1896.0,1895.9,6.67988079]
[1742309748515,0.03,1896.5,1896.4,5.27314]
[1742309748829,4.74442777,1896.5,1896.4,5.33266329]
[1742309749028,7.74442777,1896.5,1896.4,5.33266329]
[1742309749234,4.74442777,1896.5,1896.4,5.33266329]
[1742309750925,13.81249777,1896.5,1896.4,0.05952329]
[1742309751133,9.01407055,1896.5,1896.4,0.05952329]
[1742309751329,3.0,1896.4,1896.3,5.27341]
[1742309751516,7.71442777,1896.4,1896.3,5.27341]
[1742309752197,4.71442777,1896.4,1896.3,5.27341]
[1742309760623,3.0,1896.3,1896.2,5.27359]
[1742309760821,7.71442777,1896.4,1896.2,10.54714]
[1742309761016,7.71442777,1896.4,1896.3,5.27342]
[1742309762051,3.0,1896.3,1896.2,5.27355]
[1742309762251,7.71442777,1896.4,1896.2,5.27355]
[1742309762550,3.0,1896.3,1896.2,5.27355]
[1742309762752,4.71442777,1896.4,1896.2,5.27355]
[1742309762939,5.27355,1896.2,1895.4,0.8165]
[1742309763140,0.7755,1896.0,1895.7,5.27506]
[1742309763458,0.7755,1896.0,1895.8,5.27476]
[1742309763949,0.7755,1896.0,1895.8,5.27465]
[1742309764156,3.7883,1896.2,1896.0,5.27421]
[1742309764382,1.45287582,1896.3,1896.0,6.06031]
[1742309764383,4.71442777,1896.1,1896.0,6.06031]
[1742309764551,3.8183,1896.5,1896.0,1.919574]
[1742309764854,3.8183,1896.5,1896.2,5.2737]
[1742309765055,9.0912,1896.5,1896.2,5.2737]
[1742309765453,7.71442777,1896.3,1896.2,5.2736]
[1742309770144,3.0,1896.3,1896.2,6.1067]
[1742309770547,7.71442777,1896.3,1896.2,6.1067]
[1742309770760,7.71442777,1896.3,1896.2,7.29727651]
[1742309771335,7.71442777,1896.3,1896.2,6.15921351]
[1742309774678,0.03,1896.5,1896.4,6.07874]
[1742309774679,1e-05,1896.5,1896.4,6.07874]
[1742309775041,1e-05,1896.5,1896.4,6.13063131]
[1742309775577,1e-05,1896.5,1896.4,41.13063131]
[1742309775771,3.00001,1896.5,1896.4,45.77102544]
[1742309777841,1e-05,1896.5,1896.4,45.77102544]
[1742309778070,1e-05,1896.5,1896.4,41.13063131]
[1742309779777,4.71442777,1896.8,1896.6,5.27259]
[1742309779947,4.72442777,1896.9,1896.8,5.27203]
[1742309780281,4.72442777,1896.9,1896.8,5.32392131]
[1742309780778,0.01,1896.9,1896.8,5.32392131]
[1742309780984,0.01,1896.9,1896.8,41.46616444]
[1742309781882,3.01,1896.9,1896.8,41.46616444]
[1742309782475,0.01,1896.9,1896.8,41.46616444]
[1742309782777,0.01,1896.9,1896.8,42.23946444]
[1742309784351,0.01,1896.9,1896.8,5.32392131]
[1742309784547,3.01,1896.9,1896.8,5.32392131]
[1742309784879,3.0,1896.8,1896.7,5.27216]
[1742309785181,7.71442777,1896.8,1896.7,5.27216]
[1742309786961,7.71442777,1896.8,1896.7,6.404344]
[1742309788148,7.71442777,1896.8,1896.7,5.27216]
[1742309788652,3.0,1896.8,1896.7,5.27216]
[1742309788885,7.71442777,1896.8,1896.7,5.27216]
[1742309790686,4.72442777,1896.9,1896.8,5.27203]
[1742309791056,7.72442777,1896.9,1896.8,5.27203]
[1742309791266,3.01,1896.9,1896.8,6.326449]
[1742309791682,0.01,1896.9,1896.8,7.133049]
[1742309791883,0.01,1896.9,1896.8,7.1857607]
[1742309792084,1e-05,1896.9,1896.8,7.18575945]
[1742309792588,1e-05,1896.9,1896.8,7.133049]
[1742309793091,1e-05,1896.9,1896.8,42.133049]
[1742309794489,4.71443777,1896.9,1896.8,46.766449]
[1742309794803,1e-05,1896.9,1896.8,11.766449]
[1742309796894,7.71443777,1896.9,1896.8,5.27203]
[1742309797098,8.50493777,1896.9,1896.8,5.27203]
[1742309798418,3.0,1896.8,1896.7,5.27216]
[1742309798633,4.71442777,1896.8,1896.7,5.27216]
[1742309799454,7.71442777,1896.8,1896.6,5.27256]
[1742309799599,7.71442777,1896.7,1896.5,5.2727]
[1742309799836,1e-05,1896.9,1896.7,5.2722]
[1742309799993,1e-05,1896.9,1896.8,5.27203]
[1742309800805,0.7888,1896.8,1896.7,5.2722]
[1742309801695,7.71442777,1896.8,1896.6,5.27248]
[1742309801932,3.0,1896.6,1896.5,5.27275]
[1742309802099,4.71442777,1896.6,1896.5,5.27275]
[1742309803330,7.71442777,1896.6,1896.4,10.54626]
[1742309803553,9.25197055,1896.5,1896.2,40.27366]
[1742309803848,4.71442777,1896.3,1896.2,5.27355]
[1742309804206,4.71442777,1896.3,1896.2,40.27355]
[1742309804451,7.71442777,1896.3,1896.2,5.27355]
[1742309808341,3.7661,1896.5,1896.4,5.27314]
[1742309808548,0.7925,1896.7,1896.6,5.27232]
[1742309809621,0.7925,1896.7,1896.6,5.3216717]
[1742309809835,5.50692777,1896.7,1896.6,5.3216717]
[1742309810046,8.50692777,1896.7,1896.6,5.3216717]
[1742309812310,3.0,1896.7,1896.6,5.3216717]
[1742309812511,4.71442777,1896.7,1896.6,6.90838887]
[1742309816948,4.71442777,1896.7,1896.6,7.70758887]
[1742309817343,1e-05,1896.9,1896.8,5.27203]
[1742309817525,7.71443777,1896.9,1896.8,5.27203]
[1742309817720,7.71443777,1896.9,1896.8,5.32166066]
[1742309817926,7.71443777,1896.9,1896.8,6.38104673]
[1742309818649,7.71443777,1896.9,1896.8,7.14324673]
[1742309819459,1e-05,1896.9,1896.8,7.14324673]
[1742309819817,1e-05,1896.9,1896.8,7.09361607]
[1742309820849,1e-05,1896.9,1896.8,42.09361607]
[1742309821051,4.71443777,1896.9,1896.8,42.09361607]
[1742309821855,4.71443777,1896.9,1896.8,6.33141607]
[1742309823336,1e-05,1896.9,1896.8,6.33141607]
[1742309823542,1e-05,1896.9,1896.8,7.14341607]
[1742309824046,4.71443777,1896.9,1896.8,6.33141607]
[1742309824246,4.71443777,1896.9,1896.8,5.27203]
[1742309824631,8.47623777,1896.9,1896.8,5.27203]
[1742309825717,3.0,1896.8,1896.7,5.2722]
[1742309825922,7.71442777,1896.8,1896.6,5.27257]
[1742309826119,0.7771,1896.7,1896.6,5.27257]
[1742309826873,0.7771,1896.7,1896.4,5.27306]
[1742309827027,7.71442777,1896.5,1896.4,10.54609]
[1742309827230,7.71442777,1896.5,1896.4,5.27303]
[1742309827649,3.8111,1896.4,1896.3,5.27339]
[1742309827954,3.0,1896.6,1896.1,0.8323]
[1742309828135,3.8058,1896.7,1896.4,5.27293]
[1742309828332,5.18503878,1896.7,1896.4,10.5459]
[1742309828531,5.18503878,1896.7,1896.4,5.27307]
[1742309828731,0.8269,1896.6,1896.3,10.54671]
[1742309828959,0.8269,1896.6,1896.3,5.2733]
[1742309829168,4.71442777,1896.4,1896.3,5.27329]
[1742309829350,3.0,1896.3,1895.8,5.27456]
[1742309829535,3.0,1896.3,1896.1,10.54767]
[1742309829732,3.0,1896.3,1896.2,5.2737]
[1742309830165,3.39513741,1896.3,1896.2,5.32316585]
[1742309830364,3.0,1896.3,1896.2,5.32316585]
[1742309830943,4.71442777,1896.3,1896.2,5.32316585]
[1742309831131,9.2161,1896.5,1896.4,5.27314]
[1742309831333,3.7821,1896.5,1896.3,5.27337]
[1742309831533,4.16031,1896.5,1896.2,5.27367]
[1742309831851,4.16031,1896.5,1896.4,0.04946585]
[1742309832052,4.16031,1896.5,1896.2,5.27352]
[1742309832247,9.4332,1896.5,1896.3,0.04946585]
[1742309832451,5.48772777,1896.4,1896.1,5.27396]
[1742309832655,5.48772777,1896.2,1896.1,5.27396]
[1742309834363,10.20215554,1896.2,1895.6,35.0]
[1742309834564,0.7733,1896.2,1896.1,5.27398]
[1742309834764,0.7576,1896.4,1896.1,10.54778]
[1742309834970,4.75340412,1896.4,1896.2,5.27369]
[1742309835268,4.75340412,1896.4,1896.2,5.27356]
[1742309835463,7.71442777,1896.3,1896.2,5.27356]
[1742309838169,7.71442777,1896.3,1896.2,40.27356]
[1742309838465,6.8403,1896.6,1896.5,5.27287]
[1742309838668,4.71442777,1896.6,1896.5,5.27287]
[1742309838858,7.71442777,1896.6,1896.5,5.27287]
[1742309839058,4.71442777,1896.6,1896.5,5.27287]
[1742309842459,1e-05,1896.9,1896.8,5.27203]
[1742309843374,7.71443777,1896.9,1896.8,5.27203]
[1742309846575,9.03106,1896.8,1896.5,5.27284]
[1742309846782,7.71442777,1896.6,1896.5,5.27276]
[1742309852191,3.0,1896.6,1896.5,6.04316]
[1742309852362,7.71442777,1896.6,1896.5,6.04316]
[1742309853863,7.71442777,1896.6,1896.5,5.27276]
[1742309854884,6.137724,1896.5,1896.4,5.27303]
[1742309855095,3.77144278,1896.5,1896.4,5.27303]
[1742309855294,0.7694,1896.4,1896.3,5.27333]
[1742309855498,8.48382777,1896.4,1896.3,5.27333]
[1742309855787,3.753,1895.8,1895.5,5.27555]
[1742309856086,3.0,1895.5,1895.4,0.765]
[1742309856295,3.0,1895.5,1895.3,1.13914098]
[1742309856504,4.71442777,1895.4,1895.3,6.41525098]
[1742309857090,7.71442777,1896.0,1895.9,5.27453]
[1742309857273,3.0,1895.9,1895.8,5.27481]
[1742309857481,3.0,1895.9,1895.8,10.54954]
[1742309857861,3.0,1895.9,1895.8,5.27473]
[1742309858261,3.0,1895.9,1895.8,5.27472]
[1742309858571,3.0,1895.9,1895.8,10.54944]
[1742309858974,3.38865568,1895.9,1895.8,10.54944]
[1742309859282,3.38865568,1895.9,1895.8,5.27472]
[1742309861460,8.27509,1895.7,1895.4,5.27581]
[1742309861789,3.0,1895.7,1895.4,10.55157]
[1742309861972,8.27608,1895.4,1895.2,0.8057]
[1742309862175,4.71442777,1895.5,1895.1,5.27675]
[1742309862176,3.0,1895.2,1895.1,5.27675]
[1742309862375,12.42885554,1895.2,1895.1,5.27675]
[1742309863480,3.0,1895.1,1894.9,40.27731]
[1742309863680,7.71442777,1895.0,1894.9,5.27713]
[1742309864364,7.71442777,1895.0,1894.9,7.218862]
[1742309865007,4.71442777,1895.0,1894.9,7.218862]
[1742309866092,3.0,1895.4,1895.3,5.2762]
[1742309866273,3.39117292,1895.4,1895.3,5.2762]
[1742309866461,3.39117292,1895.4,1895.3,40.2762]
[1742309866863,0.39117292,1895.4,1895.3,40.2762]
[1742309867179,0.8133,1895.7,1895.4,5.27583]
[1742309867386,7.71442777,1895.5,1895.4,10.55162]
[1742309868375,7.71442777,1895.5,1895.4,15.106782]
[1742309868974,4.71442777,1895.5,1895.4,15.106782]
[1742309869858,4.71442777,1895.5,1895.4,10.55162]
[1742309870065,5.11199241,1895.5,1895.4,10.55162]
[1742309870260,8.92529241,1895.5,1895.4,10.55162]
[1742309870465,8.11199241,1895.5,1895.4,10.55162]
[1742309879597,3.0,1895.5,1895.4,11.35562]
[1742309879796,3.0,1895.5,1895.4,12.491182]
[1742309880226,7.71442777,1895.5,1895.4,12.491182]
[1742309880925,7.71442777,1895.5,1895.4,11.687182]
[1742309881098,7.71442777,1895.5,1895.4,10.55162]
[1742309882631,7.71442777,1895.5,1895.4,5.27579]
[1742309883422,15.67359308,1896.0,1895.4,5.27579]
[1742309883423,0.8204,1896.5,1895.8,0.8258]
[1742309883747,0.8204,1896.5,1896.1,5.27386]
[1742309883748,1.47461455,1896.5,1896.1,5.27386]
[1742309883944,9.74756455,1896.5,1896.1,5.27386]
[1742309884104,0.97475646,1896.4,1896.0,5.27406]
[1742309884315,5.27356,1896.3,1896.0,5.27406]
[1742309884524,4.71442777,1896.1,1896.0,5.27406]